fUST/lending_fUST_20251018
["ID","MTS","AMOUNT","RATE_DAILY","PERIOD"]
[391699211,1760733053276,-253.87112892,0.00030684,5]
[391699213,1760733053286,-912.61,0.00030684,2]
[391699215,1760733053295,-500.0,0.00030684,5]
[391699217,1760733053304,-672.56,0.00030684,5]
[391699219,1760733053313,-500.0,0.00030684,5]
[391699221,1760733053323,-451.17029076,0.00030684,5]
[391699223,1760733053332,-378.67280413,0.00030684,5]
[391699225,1760733053341,-338.77367182,0.00030684,5]
[391699227,1760733053352,-500.0,0.00030684,5]
[391699229,1760733053360,-1128.79,0.00030684,5]
[391699231,1760733053370,-1081.76,0.00030684,5]
[391699233,1760733053379,-1000.0,0.00030684,2]
[391699235,1760733053388,-1207.45,0.00030684,5]
[391699237,1760733053397,-500.0,0.00030684,5]
[391699239,1760733053407,-500.0,0.00030684,5]
[391699241,1760733053417,-500.0,0.00030684,5]
[391699244,1760733053427,-937.39,0.00030684,5]
[391699245,1760733053436,-1850.56,0.00030684,5]
[391699247,1760733053445,-500.0,0.00030684,5]
[391699250,1760733053456,-977.52,0.00030684,5]
[391699252,1760733053465,-500.0,0.00030684,5]
[391699254,1760733053475,-500.0,0.00030684,5]
[391699256,1760733053484,-500.0,0.00030684,5]
[391699258,1760733053494,-758.87,0.00030684,5]
[391699260,1760733053503,-485.1449,0.00030684,5]
[391699261,1760733053512,-500.0,0.00030684,5]
[391699264,1760733053521,-500.0,0.00030684,5]
[391699266,1760733053531,-1311.6,0.00030684,5]
[391699267,1760733053545,-500.0,0.00030684,5]
[391699269,1760733053554,-500.0,0.00030684,5]
[391699271,1760733053563,-947.01,0.00030684,5]
[391699273,1760733053573,-548.75527171,0.00030684,5]
[391699275,1760733053582,-1713.47,0.00030684,5]
[391699277,1760733053591,-500.0,0.00030684,5]
[391699280,1760733053602,-500.0,0.00030684,5]
[391699281,1760733053611,-1391.82,0.00030684,5]
[391699283,1760733053621,-1395.33,0.00030684,5]
[391699286,1760733053630,-500.0,0.00030684,5]
[391699287,1760733053639,-809.87,0.00030684,5]
[391699289,1760733053648,-659.21,0.00030684,5]
[391699291,1760733053658,-162.68372191,0.00030684,5]
[391699293,1760733053667,-1107.05,0.00030684,5]
[391699295,1760733053676,-500.0,0.00030684,5]
[391699297,1760733053686,-500.0,0.00030684,5]
[391699299,1760733053695,-500.0,0.00030684,5]
[391699301,1760733053704,-500.0,0.00030684,5]
[391699303,1760733053714,-940.73,0.00030684,5]
[391699305,1760733053724,-500.0,0.00030684,5]
[391699307,1760733053733,-500.0,0.00030684,5]
[391699309,1760733053743,-500.0,0.00030684,5]
[391699311,1760733053752,-397.87436398,0.00030684,5]
[391699314,1760733053763,-506.39245951,0.00030684,5]
[391699316,1760733053772,-500.0,0.00030684,5]
[391699317,1760733053782,-1150.36,0.00030684,5]
[391699320,1760733053793,-500.0,0.00030684,5]
[391699321,1760733053804,-500.0,0.00030684,5]
[391699324,1760733053815,-500.0,0.00030684,5]
[391699325,1760733053824,-500.0,0.00030684,5]
[391699327,1760733053833,-500.0,0.00030684,5]
[391699330,1760733053843,-1494.17,0.00030684,5]
[391699331,1760733053852,-500.0,0.00030684,5]
[391699334,1760733053862,-500.0,0.00030684,5]
[391699335,1760733053871,-500.0,0.00030684,5]
[391699337,1760733053881,-500.0,0.00030684,5]
[391699339,1760733053891,-500.0,0.00030684,5]
[391699342,1760733053900,-913.22,0.00030684,5]
[391699343,1760733053909,-500.0,0.00030684,5]
[391699345,1760733053919,-792.7,0.00030684,5]
[391699347,1760733053928,-336.51301969,0.00030684,5]
[391699349,1760733053937,-772.33,0.00030684,5]
[391699351,1760733053946,-500.0,0.00030684,5]
[391699353,1760733053956,-500.0,0.00030684,5]
[391699355,1760733053965,-500.0,0.00030684,5]
[391699357,1760733053975,-500.0,0.00030684,5]
[391699359,1760733053984,-500.0,0.00030684,5]
[391699361,1760733053993,-806.45,0.00030684,5]
[391699363,1760733054003,-500.0,0.00030684,5]
[391699366,1760733054014,-1033.67,0.00030684,5]
[391699368,1760733054024,-500.0,0.00030684,5]
[391699370,1760733054034,-500.0,0.00030684,3]
[391699372,1760733054044,-500.0,0.00030684,5]
[391699374,1760733054053,-500.0,0.00030684,5]
[391699376,1760733054063,-390.89237784,0.00030684,5]
[391699378,1760733054072,-500.0,0.00030684,5]
[391699379,1760733054082,-616.62,0.00030684,5]
[391699381,1760733054092,-500.0,0.00030684,5]
[391699384,1760733054103,-772.15,0.00030684,5]
[391699386,1760733054112,-500.0,0.00030684,5]
[391699388,1760733054123,-500.0,0.00030684,5]
[391699390,1760733054133,-500.0,0.00030684,5]
[391699392,1760733054142,-933.0,0.00030684,5]
[391699394,1760733054152,-500.0,0.00030684,5]
[391699396,1760733054162,-500.0,0.00030684,5]
[391699398,1760733054171,-500.32,0.00030684,5]
[391699400,1760733054181,-500.0,0.00030684,5]
[391699402,1760733054190,-500.0,0.00030684,5]
[391699404,1760733054200,-500.0,0.00030684,5]
[391699406,1760733054209,-500.0,0.00030684,5]
[391699408,1760733054221,-500.0,0.00030684,5]
[391699410,1760733054231,-500.0,0.00030684,5]
[391699412,1760733054240,-500.0,0.00030684,5]
[391699414,1760733054250,-545.99,0.00030684,5]
[391699416,1760733054260,-500.0,0.00030684,5]
[391699418,1760733054269,-500.0,0.00030684,5]
[391699420,1760733054279,-500.0,0.00030684,5]
[391699422,1760733054288,-500.0,0.00030684,5]
[391699424,1760733054297,-500.0,0.00030684,5]
[391699426,1760733054307,-502.77076171,0.00030684,5]
[391699428,1760733054316,-500.0,0.00030684,5]
[391699430,1760733054325,-500.0,0.00030684,5]
[391699431,1760733054335,-500.0,0.00030684,5]
[391699434,1760733054345,-322.95129104,0.00030684,5]
[391699436,1760733054354,-293.95634651,0.00030684,5]
[391699437,1760733054364,-882.88,0.00030684,5]
[391699440,1760733054374,-500.0,0.00030684,5]
[391699442,1760733054383,-500.0,0.00030684,2]
[391699451,1760733054458,-500.0,0.00030684,5]
[391699453,1760733054468,-500.0,0.00030684,5]
[391699455,1760733054478,-500.0,0.00030684,5]
[391699457,1760733054488,-1355.24,0.00030684,5]
[391699459,1760733054497,-500.0,0.00030684,5]
[391699461,1760733054506,-344.92745909,0.00030684,5]
[391699463,1760733054516,-500.0,0.00030684,5]
[391699465,1760733054525,-500.0,0.00030684,5]
[391699467,1760733054537,-500.0,0.00030684,5]
[391699469,1760733054546,-500.0,0.00030684,5]
[391699471,1760733054556,-500.0,0.00030684,5]
[391699473,1760733054565,-500.0,0.00030684,5]
[391699475,1760733054574,-1140.52,0.00030684,5]
[391699477,1760733054584,-500.0,0.00030684,5]
[391699478,1760733054593,-500.0,0.00030684,5]
[391699481,1760733054603,-882.22,0.00030684,5]
[391699483,1760733054614,-753.41,0.00030684,5]
[391699484,1760733054624,-510.78,0.00030684,5]
[391699486,1760733054633,-500.0,0.00030684,5]
[391699489,1760733054643,-500.0,0.00030684,5]
[391699490,1760733054652,-924.95,0.00030684,5]
[391699492,1760733054662,-500.0,0.00030684,5]
[391699495,1760733054671,-2245.62,0.00030684,5]
[391699497,1760733054680,-686.53,0.00030684,5]
[391699499,1760733054690,-506.18827475,0.00030684,5]
[391699501,1760733054699,-500.0,0.00030684,5]
[391699502,1760733054708,-500.0,0.00030684,5]
[391699505,1760733054717,-1459.74,0.00030684,5]
[391699506,1760733054726,-500.0,0.00030684,5]
[391699509,1760733054736,-571.76,0.00030684,5]
[391699511,1760733054745,-500.0,0.00030684,5]
[391699513,1760733054754,-500.0,0.00030684,5]
[391699515,1760733054763,-710.04,0.00030684,5]
[391699517,1760733054773,-500.0,0.00030684,5]
[391699519,1760733054782,-1007.01,0.00030684,5]
[391699521,1760733054792,-1123.55,0.00030684,5]
[391699523,1760733054801,-500.0,0.00030684,5]
[391699525,1760733054810,-500.0,0.00030684,5]
[391699527,1760733054819,-639.27490669,0.00030684,5]
[391699529,1760733054830,-500.0,0.00030684,5]
[391699531,1760733054839,-500.0,0.00030684,5]
[391699533,1760733054848,-1568.41,0.00030684,5]
[391699535,1760733054858,-500.0,0.00030684,5]
[391699537,1760733054867,-500.0,0.00030684,5]
[391699539,1760733054877,-500.0,0.00030684,5]
[391699541,1760733054887,-500.0,0.00030684,5]
[391699543,1760733054896,-505.32731631,0.00030684,5]
[391699545,1760733054905,-500.0,0.00030684,5]
[391699547,1760733054914,-500.0,0.00030684,5]
[391699549,1760733054924,-183.70084116,0.00030721,5]
[391699551,1760733054933,-1000.0,0.00030721,5]
[391699553,1760733054943,-526.39645956,0.00030721,5]
[391699555,1760733054952,-1000.0,0.00030721,5]
[391699557,1760733054961,-1000.0,0.00030721,5]
[391699559,1760733054970,-21513.87502507,0.00030762,2]
[391699561,1760733054979,-187.78006525,0.00030762,2]
[391699563,1760733054989,-166.0,0.00030762,2]
[391699565,1760733054998,-252.543512,0.00030766,3]
[391699567,1760733055007,-164.3714,0.00030766,3]
[391699569,1760733055016,-151.0,0.000308,120]
[391699571,1760733055025,-1205.51,0.000308,2]
[391699573,1760733055034,-500.90915619,0.00030809,11]
[391699575,1760733055044,-500.0,0.00030809,11]
[391699577,1760733055053,-2316.23,0.00030817,8]
[391699579,1760733055062,-500.0,0.00030821,2]
[391699581,1760733055071,-4363.64301417,0.00030858,2]
[391699583,1760733055080,-500.0,0.00030958,5]
[391699585,1760733055090,-500.0,0.00030958,5]
[391699587,1760733055099,-500.0,0.00030958,5]
[391699589,1760733055109,-500.0,0.00030958,5]
[391699591,1760733055118,-500.0,0.00030958,5]
[391699593,1760733055127,-500.0,0.00030958,5]
[391699595,1760733055138,-500.0,0.00030958,5]
[391699597,1760733055146,-451.16575095,0.00030958,5]
[391699599,1760733055156,-388.5290191,0.00030958,5]
[391699601,1760733055165,-490.68870498,0.00030958,5]
[391699603,1760733055175,-500.0,0.00030958,5]
[391699605,1760733055184,-500.0,0.00030958,5]
[391699607,1760733055193,-500.0,0.00030958,5]
[391699609,1760733055203,-500.0,0.00030958,5]
[391699611,1760733055212,-195.8716872,0.00030958,5]
[391699613,1760733055222,-500.0,0.00030958,5]
[391699615,1760733055231,-315.61933594,0.00030958,5]
[391699617,1760733055241,-500.0,0.00030958,5]
[391699619,1760733055250,-355.78,0.00030958,5]
[391699621,1760733055260,-500.0,0.00030958,5]
[391699623,1760733055269,-500.0,0.00030958,5]
[391699625,1760733055278,-500.0,0.00030958,5]
[391699627,1760733055287,-500.0,0.00030958,5]
[391699629,1760733055296,-500.0,0.00030958,5]
[391699631,1760733055305,-500.0,0.00030958,5]
[391699633,1760733055315,-500.0,0.00030958,5]
[391699635,1760733055323,-500.0,0.00030958,5]
[391699637,1760733055332,-500.0,0.00030958,5]
[391699639,1760733055341,-500.0,0.00030958,5]
[391699641,1760733055351,-297.01063883,0.00030958,5]
[391699643,1760733055359,-508.31912365,0.00030958,5]
[391699645,1760733055368,-808.37,0.00030958,5]
[391699647,1760733055377,-500.0,0.00030958,5]
[391699649,1760733055387,-500.0,0.00030958,5]
[391699651,1760733055396,-500.0,0.00030958,5]
[391699653,1760733055405,-500.0,0.00030958,2]
[391699655,1760733055414,-530.78,0.00030958,5]
[391699656,1760733055423,-500.0,0.00030958,5]
[391699658,1760733055432,-500.0,0.00030958,5]
[391699661,1760733055441,-500.0,0.00030958,2]
[391699663,1760733055451,-500.0,0.00030958,5]
[391699665,1760733055460,-500.0,0.00030958,5]
[391699667,1760733055469,-500.0,0.00030958,5]
[391699669,1760733055478,-500.0,0.00030958,5]
[391699671,1760733055488,-468.08171659,0.00030958,5]
[391699673,1760733055497,-735.76,0.00030958,5]
[391699675,1760733055506,-500.0,0.00030958,5]
[391699677,1760733055515,-500.0,0.00030958,5]
[391699685,1760733055585,-500.0,0.00030958,5]
[391699687,1760733055595,-500.0,0.00030958,5]
[391699689,1760733055604,-500.0,0.00030958,5]
[391699691,1760733055613,-500.0,0.00030958,5]
[391699693,1760733055622,-500.0,0.00030958,5]
[391699695,1760733055631,-500.0,0.00030958,5]
[391699697,1760733055640,-500.0,0.00030958,5]
[391699699,1760733055649,-563.23,0.00030958,5]
[391699701,1760733055658,-500.0,0.00030958,5]
[391699703,1760733055667,-251.12386056,0.00030958,5]
[391699705,1760733055675,-500.0,0.00030958,5]
[391699707,1760733055684,-500.0,0.00030958,5]
[391699709,1760733055693,-500.0,0.00030958,5]
[391699711,1760733055702,-500.0,0.00030958,5]
[391699713,1760733055711,-500.0,0.00030958,5]
[391699715,1760733055720,-500.0,0.00030958,5]
[391699717,1760733055729,-500.0,0.00030958,5]
[391699719,1760733055738,-374.47803626,0.00030958,5]
[391699721,1760733055747,-500.0,0.00030958,5]
[391699723,1760733055756,-535.51,0.00030958,5]
[391699725,1760733055765,-500.0,0.00030958,5]
[391699727,1760733055774,-165.73545927,0.00030958,5]
[391699729,1760733055783,-1290.91,0.00030958,5]
[391699731,1760733055792,-409.2464572,0.00030958,5]
[391699733,1760733055801,-500.0,0.00030958,5]
[391699735,1760733055810,-188.37467149,0.00030958,5]
[391699736,1760733055819,-248.0167481,0.00030958,5]
[391699739,1760733055829,-500.0,0.00030958,5]
[391699741,1760733055838,-500.0,0.00030958,5]
[391699742,1760733055848,-434.17568225,0.00030958,5]
[391699744,1760733055857,-500.0,0.00030958,5]
[391699747,1760733055866,-500.0,0.00030958,5]
[391699749,1760733055876,-500.0,0.00030958,5]
[391699751,1760733055884,-500.0,0.00030958,5]
[391699753,1760733055894,-500.0,0.00030958,5]
[391699754,1760733055902,-500.0,0.00030958,5]
[391699755,1760733055911,-199.85000003,0.00030958,5]
[391699756,1760733055920,-500.0,0.00030958,5]
[391699757,1760733055929,-500.0,0.00030958,5]
[391699758,1760733055937,-510.17925448,0.00030958,5]
[391699759,1760733055947,-151.0,0.00030958,30]
[391699760,1760733055955,-500.0,0.00030958,5]
[391699761,1760733055964,-500.0,0.00030958,5]
[391699762,1760733055973,-500.0,0.00030958,5]
[391699763,1760733055982,-1115.36,0.00030958,5]
[391699764,1760733055991,-500.0,0.00030958,5]
[391699765,1760733055999,-742.93,0.00030958,5]
[391699766,1760733056008,-500.0,0.00030958,5]
[391699767,1760733056017,-500.0,0.00030958,5]
[391699769,1760733056026,-500.0,0.00030958,5]
[391699771,1760733056035,-500.0,0.00030958,5]
[391699773,1760733056045,-500.0,0.00030958,5]
[391699775,1760733056061,-500.0,0.00030958,5]
[391699778,1760733056078,-198.082719,0.00030958,2]
[391699781,1760733056094,-663.48,0.00030958,5]
[391699784,1760733056113,-500.0,0.00030958,5]
[391699787,1760733056131,-151.0,0.00030958,30]
[391699790,1760733056148,-151.0,0.00030958,30]
[391699792,1760733056164,-151.0,0.00030958,30]
[391699795,1760733056181,-151.0,0.00030958,30]
[391699798,1760733056195,-500.0,0.00030958,5]
[391699801,1760733056214,-500.0,0.00030958,5]
[391699804,1760733056233,-908.04,0.00030958,5]
[391699806,1760733056249,-500.0,0.00030958,5]
[391699809,1760733056261,-500.0,0.00030958,5]
[391699812,1760733056279,-500.0,0.00030958,5]
[391699814,1760733056294,-151.0,0.00030958,30]
[391699817,1760733056309,-151.0,0.00030958,30]
[391699819,1760733056322,-548.86,0.00030958,5]
[391699822,1760733056336,-151.0,0.00030958,2]
[391699824,1760733056352,-500.0,0.00030958,5]
[391699827,1760733056367,-500.0,0.00030958,5]
[391699829,1760733056381,-151.0,0.00030958,30]
[391699832,1760733056395,-516.36,0.00030958,5]
[391699835,1760733056409,-505.33014317,0.00030958,5]
[391699837,1760733056422,-266.5363946,0.00030958,5]
[391699840,1760733056436,-336.18796874,0.00030958,5]
[391699842,1760733056450,-969.58,0.00030958,5]
[391699844,1760733056464,-1160.61,0.00030958,5]
[391699847,1760733056477,-500.0,0.00030958,5]
[391699849,1760733056490,-352.87,0.00030958,5]
[391699852,1760733056504,-500.0,0.00030958,5]
[391699854,1760733056517,-232.6152596,0.00030958,5]
[391699857,1760733056531,-516.26636019,0.00030958,5]
[391699860,1760733056549,-500.0,0.00030958,5]
[391699862,1760733056562,-500.0,0.00030958,5]
[391699865,1760733056576,-500.0,0.00030958,5]
[391699867,1760733056590,-500.0,0.00030958,5]
[391699870,1760733056605,-185.67463076,0.00030958,5]
[391699872,1760733056620,-500.0,0.00030958,5]
[391699875,1760733056634,-1440.81,0.00030958,5]
[391699877,1760733056648,-500.0,0.00030958,5]
[391699880,1760733056662,-455.19,0.00030958,5]
[391699883,1760733056676,-521.61,0.00030958,5]
[391699885,1760733056689,-500.0,0.00030958,5]
[391699888,1760733056703,-500.0,0.00030958,5]
[391699890,1760733056717,-500.0,0.00030958,5]
[391699892,1760733056730,-500.0,0.00030958,5]
[391699895,1760733056744,-500.0,0.00030958,5]
[391699897,1760733056759,-500.0,0.00030958,5]
[391699900,1760733056773,-548.40378406,0.00030958,5]
[391699903,1760733056786,-151.0,0.00030958,30]
[391699905,1760733056800,-525.76,0.00030958,5]
[391699908,1760733056814,-500.0,0.00030958,5]
[391699910,1760733056827,-500.0,0.00030958,5]
[391699923,1760733056937,-500.0,0.00030958,5]
[391699925,1760733056948,-500.0,0.00030958,5]
[391699927,1760733056958,-500.0,0.00030958,5]
[391699929,1760733056968,-500.0,0.00030958,5]
[391699931,1760733056977,-500.0,0.00030958,5]
[391699933,1760733056987,-500.0,0.00030958,5]
[391699935,1760733056996,-500.0,0.00030958,5]
[391699937,1760733057006,-500.0,0.00030958,5]
[391699939,1760733057015,-912.61,0.00030958,2]
[391699940,1760733057025,-500.0,0.00030958,5]
[391699942,1760733057034,-672.56,0.00030958,5]
[391699944,1760733057043,-500.0,0.00030958,5]
[391699946,1760733057052,-500.0,0.00030958,5]
[391699948,1760733057062,-1128.79,0.00030958,5]
[391699950,1760733057071,-1081.76,0.00030958,5]
[391699952,1760733057081,-1207.45,0.00030958,5]
[391699954,1760733057090,-500.0,0.00030958,5]
[391699956,1760733057100,-500.0,0.00030958,5]
[391699958,1760733057108,-500.0,0.00030958,5]
[391699960,1760733057118,-937.39,0.00030958,5]
[391699962,1760733057127,-1850.56,0.00030958,5]
[391699964,1760733057136,-500.0,0.00030958,5]
[391699966,1760733057146,-977.52,0.00030958,5]
[391699968,1760733057155,-500.0,0.00030958,5]
[391699970,1760733057164,-500.0,0.00030958,5]
[391699972,1760733057174,-500.0,0.00030958,5]
[391699974,1760733057183,-758.87,0.00030958,5]
[391699976,1760733057192,-500.0,0.00030958,5]
[391699978,1760733057201,-500.0,0.00030958,5]
[391699980,1760733057210,-1311.6,0.00030958,5]
[391699982,1760733057219,-421.68294537,0.00030958,5]
[391699984,1760733057229,-500.0,0.00030958,5]
[391699986,1760733057238,-947.01,0.00030958,5]
[391699988,1760733057247,-1713.47,0.00030958,5]
[391699990,1760733057257,-500.0,0.00030958,5]
[391699991,1760733057267,-500.0,0.00030958,5]
[391699993,1760733057276,-1391.82,0.00030958,5]
[391699996,1760733057286,-1395.33,0.00030958,5]
[391699998,1760733057295,-500.0,0.00030958,5]
[391700000,1760733057304,-809.87,0.00030958,5]
[391700001,1760733057314,-659.21,0.00030958,5]
[391700003,1760733057323,-1107.05,0.00030958,5]
[391700005,1760733057332,-500.0,0.00030958,5]
[391700007,1760733057341,-500.0,0.00030958,5]
[391700009,1760733057351,-500.0,0.00030958,5]
[391700011,1760733057360,-500.0,0.00030958,5]
[391700013,1760733057370,-500.0,0.00030958,5]
[391700015,1760733057379,-500.0,0.00030958,5]
[391700017,1760733057388,-940.73,0.00030958,5]
[391700019,1760733057397,-191.224051,0.00030958,30]
[391700021,1760733057407,-500.0,0.00030958,5]
[391700023,1760733057417,-191.224051,0.00030958,30]
[391700025,1760733057426,-191.224051,0.00030958,30]
[391700027,1760733057435,-191.224051,0.00030958,30]
[391700029,1760733057445,-500.0,0.00030958,5]
[391700031,1760733057454,-1150.36,0.00030958,5]
[391700033,1760733057463,-500.0,0.00030958,5]
[391700035,1760733057473,-500.0,0.00030958,5]
[391700037,1760733057482,-510.7159742,0.00030958,5]
[391700039,1760733057492,-416.62035075,0.00030958,5]
[391700041,1760733057501,-500.0,0.00030958,5]
[391700043,1760733057511,-1494.17,0.00030958,5]
[391700045,1760733057520,-637.1602193,0.00030958,5]
[391700047,1760733057530,-500.0,0.00030958,5]
[391700049,1760733057543,-188.89131477,0.00030958,5]
[391700051,1760733057552,-500.0,0.00030958,5]
[391700053,1760733057561,-500.0,0.00030958,5]
[391700055,1760733057575,-913.22,0.00030958,5]
[391700057,1760733057586,-500.0,0.00030958,5]
[391700059,1760733057595,-792.7,0.00030958,5]
[391700061,1760733057606,-772.33,0.00030958,5]
[391700062,1760733057616,-500.0,0.00030958,5]
[391700064,1760733057625,-500.0,0.00030958,5]
[391700066,1760733057635,-500.0,0.00030958,5]
[391700068,1760733057644,-500.0,0.00030958,5]
[391700070,1760733057653,-500.0,0.00030958,5]
[391700072,1760733057663,-806.45,0.00030958,5]
[391700074,1760733057672,-500.0,0.00030958,5]
[391700076,1760733057682,-1033.67,0.00030958,5]
[391700078,1760733057691,-500.0,0.00030958,5]
[391700080,1760733057701,-500.0,0.00030958,3]
[391700082,1760733057710,-500.0,0.00030958,5]
[391700084,1760733057720,-500.0,0.00030958,5]
[391700086,1760733057729,-616.62,0.00030958,5]
[391700088,1760733057738,-500.0,0.00030958,5]
[391700090,1760733057748,-500.0,0.00030958,5]
[391700092,1760733057757,-772.15,0.00030958,5]
[391700094,1760733057766,-500.0,0.00030958,5]
[391700096,1760733057776,-500.0,0.00030958,5]
[391700098,1760733057785,-317.12845214,0.00030958,5]
[391700100,1760733057794,-933.0,0.00030958,5]
[391700102,1760733057803,-500.0,0.00030958,5]
[391700104,1760733057812,-500.0,0.00030958,5]
[391700106,1760733057822,-500.32,0.00030958,5]
[391700108,1760733057834,-500.0,0.00030958,5]
[391700110,1760733057844,-500.0,0.00030958,5]
[391700111,1760733057854,-500.0,0.00030958,5]
[391700114,1760733057865,-502.67263073,0.00030958,5]
[391700115,1760733057875,-500.0,0.00030958,5]
[391700117,1760733057884,-500.0,0.00030958,5]
[391700119,1760733057893,-500.0,0.00030958,5]
[391700121,1760733057903,-545.99,0.00030958,5]
[391700123,1760733057912,-500.0,0.00030958,5]
[391700125,1760733057921,-500.0,0.00030958,5]
[391700127,1760733057930,-500.0,0.00030958,5]
[391700129,1760733057939,-504.90197213,0.00030958,5]
[391700131,1760733057948,-500.0,0.00030958,5]
[391700133,1760733057957,-151.0,0.00030958,30]
[391700135,1760733057967,-500.0,0.00030958,5]
[391700137,1760733057977,-500.0,0.00030958,5]
[391700139,1760733057986,-183.83646996,0.00030958,5]
[391700141,1760733057995,-151.0,0.00030958,30]
[391700143,1760733058004,-882.88,0.00030958,5]
[391700145,1760733058014,-500.0,0.00030958,5]
[391700147,1760733058023,-151.0,0.00030958,30]
[391700149,1760733058033,-151.0,0.00030958,30]
[391700151,1760733058043,-500.0,0.00030958,2]
[391700153,1760733058052,-151.0,0.00030958,30]
[391700155,1760733058062,-500.0,0.00030958,5]
[391700157,1760733058072,-500.0,0.00030958,5]
[391700159,1760733058082,-170.1,0.00030958,30]
[391700161,1760733058092,-151.0,0.00030958,30]
[391700163,1760733058101,-644.91164651,0.00030958,5]
[391700165,1760733058111,-1355.24,0.00030958,5]
[391700167,1760733058120,-500.0,0.00030958,5]
[391700169,1760733058131,-151.0,0.00030958,30]
[391700171,1760733058140,-237.05228374,0.00030958,5]
[391700173,1760733058150,-151.0,0.00030958,30]
[391700175,1760733058159,-500.0,0.00030958,5]
[391700177,1760733058169,-500.0,0.00030958,5]
[391700179,1760733058178,-525.41433165,0.00030958,5]
[391700181,1760733058187,-151.0,0.00030958,30]
[391700183,1760733058197,-151.0,0.00030958,30]
[391700185,1760733058207,-500.0,0.00030958,5]
[391700187,1760733058216,-151.0,0.00030958,30]
[391700189,1760733058226,-500.0,0.00030958,5]
[391700199,1760733058306,-151.0,0.00030958,30]
[391700201,1760733058317,-1140.52,0.00030958,5]
[391700203,1760733058327,-411.39508876,0.00030958,5]
[391700205,1760733058337,-340.02543,0.00030958,30]
[391700206,1760733058347,-340.02543,0.00030958,30]
[391700208,1760733058356,-500.0,0.00030958,5]
[391700210,1760733058366,-340.02543,0.00030958,30]
[391700212,1760733058376,-882.22,0.00030958,5]
[391700214,1760733058385,-753.41,0.00030958,5]
[391700216,1760733058395,-340.02543,0.00030958,30]
[391700218,1760733058404,-151.0,0.00030958,30]
[391700220,1760733058413,-151.0,0.00030958,30]
[391700222,1760733058422,-510.78,0.00030958,5]
[391700224,1760733058431,-500.0,0.00030958,5]
[391700226,1760733058441,-500.0,0.00030958,5]
[391700228,1760733058450,-924.95,0.00030958,5]
[391700230,1760733058460,-500.0,0.00030958,5]
[391700232,1760733058470,-2245.62,0.00030958,5]
[391700234,1760733058479,-686.53,0.00030958,5]
[391700236,1760733058488,-500.0,0.00030958,5]
[391700238,1760733058497,-500.0,0.00030958,5]
[391700240,1760733058506,-1459.74,0.00030958,5]
[391700242,1760733058515,-500.0,0.00030958,5]
[391700244,1760733058524,-160.771968,0.00030958,30]
[391700245,1760733058534,-571.76,0.00030958,5]
[391700247,1760733058546,-500.0,0.00030958,5]
[391700250,1760733058556,-500.0,0.00030958,5]
[391700252,1760733058566,-151.0,0.00030958,30]
[391700254,1760733058575,-710.04,0.00030958,5]